{"text_format":"1","workbook":"xlsx","n_sheets":6,"sheets":["Adatgyűjtő mezőmező","Keráru bank","Tevékenységi lista"," sorszám generáló mező","Adatgyűjtő mezőhöz segédmező","Keráru tábla"],"not_rendered":{"charts":0,"images":0,"macros":1,"external_links":1,"defined_names":1,"comments":0,"pivot_tables":0},"unopened":[],"bounds":{"document_bytes":16777216,"sheet_cells":100000,"rows_first":2000,"rows_last":500,"rows_between":2000,"halvings":0,"cell_chars":16384,"cell_head_chars":4096},"cells_cut":0,"cells_raw":0,"read":"whole","date_system":"1900"}

{"sheet":"Adatgyűjtő mezőmező","index":0,"n_rows":20,"n_cols":17,"rows_kept":20,"cut":false,"hidden":false,"merged":[[11,0,11,7],[11,8,14,8],[14,0,14,7],[19,0,19,6],[0,0,0,7],[0,8,0,11],[0,12,0,15],[0,16,0,17],[4,0,4,1]]}
[{"$f":"'Adatgyűjtő mezőhöz segédmező'!A1","v":"Pojekt: JNJ-1801-Szekrényágy"},null,null,null,null,null,null,null,"Kész rajzok",null,null,null,"Wryklis/Vágás",null,null,null,"Marás"]
["Rajzszám:","Rajz típus:","Rajz típus:","Megnevezés:","Egység:","Lv/mm:","Db:","Megjegyzés","Modell","Alkatrész","Pdf","Dxf","Program",null,null,null,"CNC/G-kod"]
[{"$f":"'Adatgyűjtő mezőhöz segédmező'!B3&\"-\"&'Adatgyűjtő mezőhöz segédmező'!B4&C3&' sorszám generáló mező'!A2","v":"JNJ-1801-A-0001"},"Alkatrész",{"$f":"VLOOKUP(B3,Táblázat1[],2)","v":"-A-"}]
[]
["zöld cella képletet tartalmaz"]
[]
[]
[]
[]
["Cél:"]
["Beviteli mező - lenyló/előugró ablak ahol feltölthető az \"Adatgyűjtő mező\""]
["Beviteli mező tartalma"]
["Rajzszám:","Rajz típus","Rajz típus","Megnevezés","Egység","Lv/mm","Db","Megjegyzés"]
["Rajzszám generálódik: képlet szerint","választható lenyíló","Rajz tipus generálódik: képlet szerint","Szövegbeviteli mező","Szövegbeviteli mező-excel elajánlja, ha már van azonos fentebb","Szövegbeviteli mező","Szövegbeviteli mező","Szövegbeviteli mező"]
[]
[]
[]
["Feltételek:"]
["Ha \"C\" oszlopban \"Alkatrész\" vagy \"Összeállítás\" van kiválasztva,akkor a beviteli mező egyszerűen feltölthető legyen"]
["Ha \"C\" oszlopban \"Keráru van\" kiválasztva, akkor a \"Keráru bank\" többlépcsős legördülő mezője nyílik le és onnan választhatóan nyílik \"Csoport név\" , \"Gyártó\", \"Típus\", \"Fajta\"! Kiválasztott tétel beíródik az aktuális sorba. Áthozza a generált \"Rajzszám\", \"megnevezés\" adatait! Egyszerűbben leírva a szűrt mező meghatározott tartalmát írja be."]

{"sheet":"Keráru bank","index":1,"n_rows":18,"n_cols":13,"rows_kept":18,"cut":false,"hidden":false,"merged":[[14,0,14,3],[17,0,17,7],[11,11,11,12]]}
[]
["Generált szám","NIN-","Első tag","Csop.szam","Keráru","Csoport neve","soron következő/generálódik","Gyártó","Típus","Fajta","Megjegyzés","Forgalmazó","web"]
[{"$f":"B3&C3&D3&E3&[1]tábla!Q2","v":"NIN-0104-K-0001"},{"$f":"VLOOKUP(B2,[1]!Táblázat3[Cégnév],1)","v":"NIN-"},"01",{"$f":"VLOOKUP(F3,Táblázat13[],2,0)","v":"04"},"-K-","Fogasléc","0001","HIWIN","HGW","20cc"]
[{"$f":"B4&C4&D4&E4&[1]tábla!Q3","v":"NIN-0102-K-0002"},{"$f":"VLOOKUP(B3,[1]!Táblázat3[Cégnév],1)","v":"NIN-"},"01",{"$f":"VLOOKUP(F4,Táblázat13[],2,0)","v":"02"},"-K-","Motorok","0002","CPC","HGW","20cc"]
[{"$f":"B5&C5&D5&E5&[1]tábla!Q4","v":"NIN-0101-K-0003"},{"$f":"VLOOKUP(B4,[1]!Táblázat3[Cégnév],1)","v":"NIN-"},"01",{"$f":"VLOOKUP(F5,Táblázat13[],2,0)","v":"01"},"-K-","Lineáris technika","0003"]
[{"$f":"B6&C6&D6&E6&[1]tábla!Q5","v":"NIN-0101-K-0004"},{"$f":"VLOOKUP(B5,[1]!Táblázat3[Cégnév],1)","v":"NIN-"},"01",{"$f":"VLOOKUP(F6,Táblázat13[],2,0)","v":"01"},"-K-","Lineáris technika","0004"]
[{"$f":"B7&C7&D7&E7&[1]tábla!Q6","v":"NIN-0101-K-0005"},{"$f":"VLOOKUP(B6,[1]!Táblázat3[Cégnév],1)","v":"NIN-"},"01",{"$f":"VLOOKUP(F7,Táblázat13[],2,0)","v":"01"},"-K-","Lineáris technika","0005"]
[{"$f":"B8&C8&D8&E8&[1]tábla!Q7","v":"NIN-0101-K-0006"},{"$f":"VLOOKUP(B7,[1]!Táblázat3[Cégnév],1)","v":"NIN-"},"01",{"$f":"VLOOKUP(F8,Táblázat13[],2,0)","v":"01"},"-K-","Lineáris technika","0006"]
[{"$f":"B9&C9&D9&E9&[1]tábla!Q8","v":"NIN-0101-K-0007"},{"$f":"VLOOKUP(B8,[1]!Táblázat3[Cégnév],1)","v":"NIN-"},"01",{"$f":"VLOOKUP(F9,Táblázat13[],2,0)","v":"01"},"-K-","Lineáris technika","0007"]
[{"$f":"B10&C10&D10&E10&[1]tábla!Q9","v":"NIN-0101-K-0008"},{"$f":"VLOOKUP(B9,[1]!Táblázat3[Cégnév],1)","v":"NIN-"},"01",{"$f":"VLOOKUP(F10,Táblázat13[],2,0)","v":"01"},"-K-","Lineáris technika","0008"]
[{"$f":"B11&C11&D11&E11&[1]tábla!Q10","v":"NIN-0101-K-0009"},{"$f":"VLOOKUP(B10,[1]!Táblázat3[Cégnév],1)","v":"NIN-"},"01",{"$f":"VLOOKUP(F11,Táblázat13[],2,0)","v":"01"},"-K-","Lineáris technika","0009"]
[null,null,"fix","Generálódik",null,"beviteli mezőből töltődik","generálódik","beviteli mezőből töltődik","beviteli mezőből töltődik","beviteli mezőből töltődik","beviteli mezőből töltődik","utólag manuálisan töltöm ki"]
["Generálódik"]
[]
["zöld cella képletet tartalmaz"]
[]
[]
["Sajnos valamiért az \"F\" oszlop kiválasztásával nem generálódik a \"D\" oszlop, emiatt az \"A\" oszlopban is hibásan jelenik meg a generált rajzszám!"]

{"sheet":"Tevékenységi lista","index":2,"n_rows":29,"n_cols":11,"rows_kept":29,"cut":false,"hidden":false,"merged":[[28,0,28,1]]}
[null,null,null,"Kezdés",null,"Befejezés"]
["Rajzszám","Teendők","Állapot","dátum","Ki foglalkozik vele","dátum",null,null,null,"Állapot","Ki foglakozik vele"]
["JNJ-1801-A-0001",null,"Kész","2018-11-10T13:47:30","Ede Ödön",null,null,null,null,"Nincs kiadva"]
[null,null,"Nincs kiadva","2018-11-10T13:42:23",null,null,null,null,null,"Rendelés alatt","Alma Kálmán"]
[null,null,"Nincs kiadva",null,null,null,null,null,null,"Kiadva munkába","Ede Ödön"]
[null,null,"Kész","2018-11-10T13:42:31","Alma Kálmán","2018-11-10T13:47:43",null,null,null,"Szállítás alatt","Kiss Nagy"]
[null,null,"Nincs kiadva",null,null,null,null,null,null,"Kész"]
[null,null,"Nincs kiadva"]
[null,null,"Kiadva munkába",null,"Kiss Nagy"]
[null,null,"Nincs kiadva"]
[null,null,"Szállítás alatt",null,"Kiss Nagy"]
[null,null,"Nincs kiadva"]
[null,null,"Kiadva munkába","2018-11-10T13:43:27"]
[null,null,"Kiadva munkába","2018-11-10T13:43:30","Alma Kálmán"]
[null,null,"Kiadva munkába","2018-11-10T13:43:33"]
[null,null,"Kiadva munkába","2018-11-10T13:43:35"]
[null,null,"Szállítás alatt","2018-11-10T13:43:44"]
[null,null,"Nincs kiadva"]
[null,null,"Rendelés alatt","2018-11-10T13:43:59"]
[null,null,"Nincs kiadva"]
[null,null,"Nincs kiadva"]
[null,null,"Nincs kiadva"]
[null,null,"Nincs kiadva"]
[null,null,"Nincs kiadva"]
[null,null,"Nincs kiadva"]
[null,null,"Nincs kiadva"]
[null,null,"Rendelés alatt","2018-11-10T13:38:41"]
[]
["Ehhez a laphoz kaztam a makro programot!"]

{"sheet":" sorszám generáló mező","index":3,"n_rows":7,"n_cols":1,"rows_kept":7,"cut":false,"hidden":false,"merged":[[6,0,6,1]]}
["Sorszám"]
[{"$f":"TEXT(ROW(A1),\"0000\")","v":"0001"}]
[{"$f":"TEXT(ROW(A1),\"0000\")","v":"0001"}]
[]
["Sorszám 0001-9999 ig generálódjon, a bevizeli mező rajzszámában szerepel, autómatukusan növlje a számot \"+1\" értékkel amint új beviteli cella kerül kitöltésre"]
[]
["zöld cella képletet tartalmaz"]

{"sheet":"Adatgyűjtő mezőhöz segédmező","index":4,"n_rows":9,"n_cols":5,"rows_kept":9,"cut":false,"hidden":false,"merged":[[0,0,0,1],[8,0,8,1]]}
[{"$f":"A2&\" \"&B3&\"-\"&B4&\"-\"&B2","v":"Pojekt: JNJ-1801-Szekrényágy"},null,null,"Rajz tipusa","Oszlop1"]
["Pojekt:","Szekrényágy",null,"Alkatrész","-A-"]
["Cégazonosító:","JNJ",null,"Összeállítás","-O-"]
["Projektszám:",1801,null,"Keráru","-K-"]
[]
["Projekt generálódik"]
[]
[]
["zöld cella képletet tartalmaz"]

{"sheet":"Keráru tábla","index":5,"n_rows":19,"n_cols":14,"rows_kept":19,"cut":false,"hidden":false,"merged":[[18,0,18,2],[5,12,6,14]]}
["Csop.nev","Csop.szam",null,null,"Gyártó",null,null,"Típus",null,null,"Fajta",null,null,"Cégnév"]
["Lineáris technika","01",null,null,"HIWIN",null,null,"HGW",null,null,"25CC",null,null,"NIN-"]
["Motorok","02",null,null,"CPC",null,null,"PGHGW",null,null,"20CC",null,null,"TG-"]
["Fogaskerék","03",null,null,"SKF",null,null,"HG-45",null,null,"Break",null,null,"TM-"]
["Fogasléc","04",null,null,"Mitsubishi",null,null,null,null,null,"NoBreak"]
["Hajtóművek","05",null,null,null,null,null,null,null,null,null,null,"ezt a táblát külön, manuálisan töltöm ki"]
[]
[]
["Feltételek:"]
["Új sor beszúrásánál A1 oszlopba, a B1 oszlopban a csop.szám"]
["egyel növekedjen az előzőhö képest maximum 99 ig számozva"]
[]
[]
["\"tábla\" munkalapnak egy beviteli mező,ami betűkombinációval hívható elő -  pl.: Ctrl+k - beviteli mező cellái:"]
[]
["Csop.név","csop.szám","Gyártó","Tipus","Fajta","Megjegyzés"]
["beviteli cella","ez autómatikusan töltődik","beviteli cella","beviteli cella","beviteli cella","beviteli cella"]
[]
["Ebből a beviteli mezőből töltődik a \"Keráru bank\""]